[Event "Early-Titled-Tuesday-Blitz-April-16-2024"]
[Site "Chess.com"]
[Date "2024.04.16"]
[Round "5"]
[White "UnTucopalaTimba"]
[Black "CristianS27"]
[Result "0-1"]
[WhiteElo "2029"]
[BlackElo "2532"]
[TimeControl "180+1"]
[EndTime "8:56:48 PDT"]
[Termination "CristianS27 won on time"]

1. e4 {[%clk 0:02:59.3]} 1... e5 {[%clk 0:02:50.2]} 2. Nf3 {[%clk 0:02:58.8]}
2... Nc6 {[%clk 0:02:50.4]} 3. Bb5 {[%clk 0:02:58.1]} 3... a6 {[%clk 0:02:50.2]}
4. Ba4 {[%clk 0:02:57.8]} 4... Nf6 {[%clk 0:02:50.7]} 5. O-O {[%clk 0:02:57.4]}
5... Nxe4 {[%clk 0:02:51.1]} 6. d4 {[%clk 0:02:55.9]} 6... b5 {[%clk 0:02:51.7]}
7. Bb3 {[%clk 0:02:55.2]} 7... d5 {[%clk 0:02:52.6]} 8. dxe5 {[%clk 0:02:55]}
8... Be6 {[%clk 0:02:53.3]} 9. Be3 {[%clk 0:02:49.8]} 9... Be7 {[%clk
0:02:46.2]} 10. c3 {[%clk 0:02:48.8]} 10... O-O {[%clk 0:02:45.4]} 11. Nbd2
{[%clk 0:02:46.4]} 11... Bg4 {[%clk 0:02:36.9]} 12. Qb1 {[%clk 0:02:26.4]} 12...
Nxd2 {[%clk 0:02:32.4]} 13. Nxd2 {[%clk 0:02:22.4]} 13... Nxe5 {[%clk
0:02:29.6]} 14. Bf4 {[%clk 0:02:16.8]} 14... Ng6 {[%clk 0:02:14.7]} 15. Bg3
{[%clk 0:02:15.1]} 15... c6 {[%clk 0:02:13.7]} 16. a4 {[%clk 0:02:13.9]} 16...
Bc5 {[%clk 0:02:00.9]} 17. Bc2 {[%clk 0:02:09.5]} 17... f5 {[%clk 0:01:52]} 18.
h3 {[%clk 0:02:03.4]} 18... f4 {[%clk 0:01:52.1]} 19. Bh2 {[%clk 0:01:57.6]}
19... Bh5 {[%clk 0:01:06.2]} 20. b4 {[%clk 0:01:51.9]} 20... Bb6 {[%clk
0:01:00.2]} 21. Nb3 {[%clk 0:01:43.8]} 21... Qh4 {[%clk 0:00:55.4]} 22. Nd4
{[%clk 0:01:36]} 22... Rae8 {[%clk 0:00:32.8]} 23. axb5 {[%clk 0:01:24.6]} 23...
axb5 {[%clk 0:00:33.7]} 24. Re1 {[%clk 0:01:19.7]} 24... Bxd4 {[%clk 0:00:23]}
25. cxd4 {[%clk 0:01:17.9]} 25... f3 {[%clk 0:00:23.6]} 26. Rxe8 {[%clk
0:01:12.1]} 26... Rxe8 {[%clk 0:00:22.5]} 27. Bg3 {[%clk 0:01:11.3]} 27... Qxd4
{[%clk 0:00:22.4]} 28. gxf3 {[%clk 0:01:06.7]} 28... Bxf3 {[%clk 0:00:22.7]} 29.
Bxg6 {[%clk 0:01:05.8]} 29... hxg6 {[%clk 0:00:20.5]} 30. Ra3 {[%clk 0:01:00.7]}
30... Bh5 {[%clk 0:00:15.2]} 31. Ra6 {[%clk 0:00:40.3]} 31... Qd2 {[%clk
0:00:14.2]} 32. Ra1 {[%clk 0:00:35.5]} 32... Bf3 {[%clk 0:00:11.5]} 33. Qc1
{[%clk 0:00:20.3]} 33... Qxc1+ {[%clk 0:00:08.2]} 34. Rxc1 {[%clk 0:00:20.2]}
34... d4 {[%clk 0:00:08.7]} 35. Bf4 {[%clk 0:00:18.4]} 35... d3 {[%clk
0:00:09.2]} 36. Kf1 {[%clk 0:00:14.5]} 36... Re2 {[%clk 0:00:09.1]} 37. Rc3
{[%clk 0:00:11.3]} 37... Ra2 {[%clk 0:00:06.8]} 38. Ke1 {[%clk 0:00:09.3]} 38...
d2+ {[%clk 0:00:04.8]} 39. Bxd2 {[%clk 0:00:08.7]} 39... Ra1+ {[%clk 0:00:05.2]}
40. Rc1 {[%clk 0:00:08.8]} 40... Ra2 {[%clk 0:00:04.6]} 41. h4 {[%clk
0:00:08.2]} 41... Kf7 {[%clk 0:00:04.4]} 42. Be3 {[%clk 0:00:07.1]} 42... Re2+
{[%clk 0:00:03.8]} 43. Kf1 {[%clk 0:00:07.1]} 43... Rb2 {[%clk 0:00:04.7]} 44.
Bc5 {[%clk 0:00:05.2]} 44... Ke6 {[%clk 0:00:04.3]} 45. Re1+ {[%clk 0:00:05]}
45... Kf5 {[%clk 0:00:04.2]} 46. Re7 {[%clk 0:00:04.3]} 46... Kg4 {[%clk
0:00:02.9]} 0-1

[Event "Early-Titled-Tuesday-Blitz-April-16-2024"]
[Site "Chess.com"]
[Date "2024.04.16"]
[Round "5"]
[White "Boorchess"]
[Black "Heinza9"]
[Result "1-0"]
[WhiteElo "2507"]
[BlackElo "2318"]
[TimeControl "180+1"]
[EndTime "8:56:48 PDT"]
[Termination "Boorchess won on time"]

1. d4 {[%clk 0:03:00.9]} 1... f5 {[%clk 0:02:59.3]} 2. Bf4 {[%clk 0:02:59.3]}
2... Nf6 {[%clk 0:02:58.4]} 3. e3 {[%clk 0:02:59.1]} 3... e6 {[%clk 0:02:58.7]}
4. Nf3 {[%clk 0:02:57.7]} 4... b6 {[%clk 0:02:58.9]} 5. Nbd2 {[%clk 0:02:56.2]}
5... Bb7 {[%clk 0:02:58.8]} 6. Bd3 {[%clk 0:02:55.7]} 6... Be7 {[%clk
0:02:57.4]} 7. h3 {[%clk 0:02:55.6]} 7... O-O {[%clk 0:02:57.4]} 8. g4 {[%clk
0:02:55.1]} 8... Ne4 {[%clk 0:02:54.5]} 9. gxf5 {[%clk 0:02:52.3]} 9... exf5
{[%clk 0:02:54.3]} 10. Rg1 {[%clk 0:02:51.8]} 10... Kh8 {[%clk 0:02:46.1]} 11.
c3 {[%clk 0:01:39.6]} 11... d6 {[%clk 0:02:35.1]} 12. Qc2 {[%clk 0:01:32]} 12...
d5 {[%clk 0:02:10.2]} 13. Bxe4 {[%clk 0:00:31.7]} 13... fxe4 {[%clk 0:02:06.2]}
14. Ne5 {[%clk 0:00:30.3]} 14... Nd7 {[%clk 0:02:05.3]} 15. O-O-O {[%clk
0:00:28.8]} 15... Bf6 {[%clk 0:02:00.3]} 16. Nxd7 {[%clk 0:00:24.8]} 16... Qxd7
{[%clk 0:02:00.3]} 17. f3 {[%clk 0:00:24.6]} 17... Rae8 {[%clk 0:01:43]} 18. Rg3
{[%clk 0:00:23.4]} 18... c5 {[%clk 0:01:39.4]} 19. dxc5 {[%clk 0:00:21.1]} 19...
bxc5 {[%clk 0:01:39.4]} 20. Nxe4 {[%clk 0:00:21.1]} 20... Rxe4 {[%clk
0:00:41.6]} 21. fxe4 {[%clk 0:00:20.7]} 21... d4 {[%clk 0:00:41.6]} 22. e5
{[%clk 0:00:18.4]} 22... Bd8 {[%clk 0:00:37.8]} 23. exd4 {[%clk 0:00:18.3]}
23... Rxf4 {[%clk 0:00:36.4]} 24. d5 {[%clk 0:00:17.3]} 24... Qe8 {[%clk
0:00:35.7]} 25. Re1 {[%clk 0:00:16.1]} 25... Bxd5 {[%clk 0:00:35]} 26. Qd2
{[%clk 0:00:16.6]} 26... Re4 {[%clk 0:00:28.3]} 27. Rd1 {[%clk 0:00:14.3]} 27...
Rxe5 {[%clk 0:00:21.7]} 28. Qf2 {[%clk 0:00:05.4]} 28... Bf6 {[%clk 0:00:15.1]}
29. Rgd3 {[%clk 0:00:03.9]} 29... Bg8 {[%clk 0:00:08.2]} 30. Qg3 {[%clk
0:00:02.2]} 30... Qg6 {[%clk 0:00:07.3]} 31. Qxg6 {[%clk 0:00:01.8]} 31... hxg6
{[%clk 0:00:07.7]} 32. Rd8 {[%clk 0:00:02.5]} 32... Kh7 {[%clk 0:00:07.4]} 33.
Ra8 {[%clk 0:00:02.2]} 33... Re7 {[%clk 0:00:06.5]} 34. a3 {[%clk 0:00:02]}
34... Bb3 {[%clk 0:00:06.1]} 35. Rg1 {[%clk 0:00:02.1]} 35... c4 {[%clk
0:00:05.9]} 36. Kb1 {[%clk 0:00:02.3]} 36... g5 {[%clk 0:00:06.3]} 37. Ka1
{[%clk 0:00:02.7]} 37... Re2 {[%clk 0:00:05.9]} 38. Rb8 {[%clk 0:00:02.8]} 38...
Rh2 {[%clk 0:00:05.2]} 39. Rb7 {[%clk 0:00:03.1]} 39... Kh6 {[%clk 0:00:04.5]}
40. Rxa7 {[%clk 0:00:03.5]} 40... Rxh3 {[%clk 0:00:04.9]} 41. Ra6 {[%clk
0:00:03.9]} 41... Rh2 {[%clk 0:00:03.5]} 42. Ra8 {[%clk 0:00:04.4]} 42... Kg6
{[%clk 0:00:03.3]} 43. a4 {[%clk 0:00:04.9]} 43... Kf5 {[%clk 0:00:03.4]} 44. a5
{[%clk 0:00:05.3]} 44... Ke4 {[%clk 0:00:03.8]} 45. a6 {[%clk 0:00:05.3]} 45...
Kd3 {[%clk 0:00:04.1]} 46. a7 {[%clk 0:00:05.1]} 46... Bxc3 {[%clk 0:00:04.2]}
47. Rd8+ {[%clk 0:00:04.4]} 47... Bd4 {[%clk 0:00:03.1]} 48. Rxd4+ {[%clk
0:00:03.7]} 48... Kxd4 {[%clk 0:00:03.2]} 49. a8=Q {[%clk 0:00:04.2]} 49... c3
{[%clk 0:00:01.5]} 50. Qa7+ {[%clk 0:00:04.1]} 50... Kd3 {[%clk 0:00:01.4]} 51.
Qa6+ {[%clk 0:00:03.6]} 51... Kc2 {[%clk 0:00:01.2]} 52. Qg6+ {[%clk 0:00:03.1]}
1-0

[Event "Early-Titled-Tuesday-Blitz-April-16-2024"]
[Site "Chess.com"]
[Date "2024.04.16"]
[Round "5"]
[White "Alen_Yeremyann"]
[Black "frederiksvane"]
[Result "0-1"]
[WhiteElo "2831"]
[BlackElo "3052"]
[TimeControl "180+1"]
[EndTime "8:56:49 PDT"]
[Termination "frederiksvane won by checkmate"]

1. e4 {[%clk 0:03:00.9]} 1... c5 {[%clk 0:03:00]} 2. Nc3 {[%clk 0:03:00.8]} 2...
Nc6 {[%clk 0:02:59.9]} 3. Bb5 {[%clk 0:03:00.9]} 3... Nd4 {[%clk 0:02:58.6]} 4.
Bc4 {[%clk 0:03:01.2]} 4... e6 {[%clk 0:02:58.7]} 5. Nge2 {[%clk 0:03:01.8]}
5... a6 {[%clk 0:02:52.1]} 6. a4 {[%clk 0:02:59.8]} 6... Ne7 {[%clk 0:02:21.7]}
7. O-O {[%clk 0:02:52.3]} 7... g6 {[%clk 0:01:52.5]} 8. d3 {[%clk 0:02:41.2]}
8... Bg7 {[%clk 0:01:52.5]} 9. Nxd4 {[%clk 0:02:41.4]} 9... cxd4 {[%clk
0:01:52.8]} 10. Ne2 {[%clk 0:02:41.7]} 10... O-O {[%clk 0:01:51.5]} 11. Bb3
{[%clk 0:02:29.5]} 11... d5 {[%clk 0:01:50.2]} 12. exd5 {[%clk 0:02:25.7]} 12...
Nxd5 {[%clk 0:01:50]} 13. Nf4 {[%clk 0:02:25.7]} 13... Nxf4 {[%clk 0:01:47.9]}
14. Bxf4 {[%clk 0:02:25.1]} 14... Bd7 {[%clk 0:01:48.7]} 15. Qf3 {[%clk
0:02:13.3]} 15... Bc6 {[%clk 0:01:48.6]} 16. Qg3 {[%clk 0:02:13.2]} 16... Rc8
{[%clk 0:01:46.6]} 17. Rac1 {[%clk 0:02:00.8]} 17... Qd7 {[%clk 0:01:39.8]} 18.
Rfe1 {[%clk 0:02:00]} 18... Bxa4 {[%clk 0:01:37.2]} 19. Bc4 {[%clk 0:01:53.2]}
19... b5 {[%clk 0:01:30.4]} 20. Ba2 {[%clk 0:01:53.3]} 20... Rxc2 {[%clk
0:01:22.4]} 21. Rxc2 {[%clk 0:01:37.4]} 21... Bxc2 {[%clk 0:01:23.3]} 22. Rc1
{[%clk 0:01:31.7]} 22... Rc8 {[%clk 0:01:19]} 23. h4 {[%clk 0:01:30]} 23... h5
{[%clk 0:01:00.8]} 24. Qh3 {[%clk 0:01:24.4]} 24... a5 {[%clk 0:00:57.4]} 25.
Re1 {[%clk 0:01:22.8]} 25... b4 {[%clk 0:00:51.9]} 26. Bc4 {[%clk 0:01:13.1]}
26... a4 {[%clk 0:00:52.1]} 27. g4 {[%clk 0:01:08.9]} 27... Rxc4 {[%clk
0:00:41.4]} 28. dxc4 {[%clk 0:01:08.2]} 28... d3 {[%clk 0:00:42.3]} 29. Bd2
{[%clk 0:01:03.8]} 29... a3 {[%clk 0:00:36.8]} 30. bxa3 {[%clk 0:01:01.9]} 30...
bxa3 {[%clk 0:00:37.7]} 31. gxh5 {[%clk 0:01:02.3]} 31... a2 {[%clk 0:00:37.9]}
32. hxg6 {[%clk 0:00:56.4]} 32... fxg6 {[%clk 0:00:19.3]} 33. Qg2 {[%clk
0:00:56.8]} 33... Qe8 {[%clk 0:00:19.7]} 34. h5 {[%clk 0:00:51.1]} 34... a1=Q
{[%clk 0:00:19.9]} 35. Rxa1 {[%clk 0:00:50.9]} 35... Bxa1 {[%clk 0:00:20.8]} 36.
hxg6 {[%clk 0:00:51.2]} 36... Kg7 {[%clk 0:00:21.1]} 37. Qb7+ {[%clk 0:00:44.8]}
37... Kxg6 {[%clk 0:00:20.5]} 38. Qe4+ {[%clk 0:00:45.5]} 38... Kg7 {[%clk
0:00:19.1]} 39. Qf4 {[%clk 0:00:31.6]} 39... Qg6+ {[%clk 0:00:15.3]} 40. Kf1
{[%clk 0:00:32.2]} 40... Bd1 {[%clk 0:00:10.8]} 41. Qc7+ {[%clk 0:00:28.8]}
41... Kg8 {[%clk 0:00:09.7]} 42. Qd8+ {[%clk 0:00:26.7]} 42... Kh7 {[%clk
0:00:09]} 43. Qh4+ {[%clk 0:00:19.3]} 43... Bh5 {[%clk 0:00:09.1]} 44. c5 {[%clk
0:00:10.8]} 44... Bf6 {[%clk 0:00:09.2]} 45. Qh2 {[%clk 0:00:10.1]} 45... Kg8
{[%clk 0:00:03.7]} 46. c6 {[%clk 0:00:10.1]} 46... Be2+ {[%clk 0:00:03.5]} 47.
Ke1 {[%clk 0:00:10.6]} 47... Be5 {[%clk 0:00:04]} 48. Qh1 {[%clk 0:00:08.1]}
48... Bf3 {[%clk 0:00:03.9]} 49. Qf1 {[%clk 0:00:06.8]} 49... Bxc6 {[%clk
0:00:03.6]} 50. Be3 {[%clk 0:00:05.1]} 50... Bc3+ {[%clk 0:00:03.9]} 51. Kd1
{[%clk 0:00:05.7]} 51... Ba4+ {[%clk 0:00:04.3]} 52. Kc1 {[%clk 0:00:06.3]}
52... d2+ {[%clk 0:00:04.9]} 53. Bxd2 {[%clk 0:00:06.1]} 53... Qc2# {[%clk
0:00:05.2]} 0-1

[Event "Early-Titled-Tuesday-Blitz-April-16-2024"]
[Site "Chess.com"]
[Date "2024.04.16"]
[Round "5"]
[White "Aminazinas"]
[Black "Chessbard1972"]
[Result "0-1"]
[WhiteElo "2535"]
[BlackElo "2351"]
[TimeControl "180+1"]
[EndTime "8:56:49 PDT"]
[Termination "Chessbard1972 won by resignation"]

1. e4 {[%clk 0:03:00.9]} 1... c5 {[%clk 0:02:59.4]} 2. Nc3 {[%clk 0:03:00.2]}
2... a6 {[%clk 0:02:58]} 3. a4 {[%clk 0:02:59.8]} 3... Nc6 {[%clk 0:02:57.5]} 4.
f4 {[%clk 0:03:00.1]} 4... e6 {[%clk 0:02:56.8]} 5. Bc4 {[%clk 0:02:59]} 5...
Nge7 {[%clk 0:02:55.6]} 6. d3 {[%clk 0:02:57.6]} 6... d5 {[%clk 0:02:55.5]} 7.
Bb3 {[%clk 0:02:58.1]} 7... Rb8 {[%clk 0:02:53.4]} 8. Nf3 {[%clk 0:02:55.3]}
8... b5 {[%clk 0:02:52.9]} 9. O-O {[%clk 0:02:45.9]} 9... c4 {[%clk 0:02:52]}
10. Ba2 {[%clk 0:02:46.1]} 10... g6 {[%clk 0:02:43.1]} 11. Qe1 {[%clk 0:02:33]}
11... Bg7 {[%clk 0:02:41]} 12. f5 {[%clk 0:02:32]} 12... O-O {[%clk 0:02:33.3]}
13. Qh4 {[%clk 0:02:29.8]} 13... exf5 {[%clk 0:02:26.5]} 14. exd5 {[%clk
0:02:27.3]} 14... Nxd5 {[%clk 0:02:22.1]} 15. Nxd5 {[%clk 0:02:25.1]} 15... Qxd5
{[%clk 0:02:20.4]} 16. dxc4 {[%clk 0:02:25.1]} 16... Qc5+ {[%clk 0:02:14.2]} 17.
Kh1 {[%clk 0:02:24]} 17... b4 {[%clk 0:02:13.4]} 18. Bh6 {[%clk 0:02:19.9]}
18... f6 {[%clk 0:02:08.9]} 19. Rad1 {[%clk 0:02:11.3]} 19... Be6 {[%clk
0:02:03.8]} 20. Rfe1 {[%clk 0:02:03.5]} 20... Rbe8 {[%clk 0:02:01.7]} 21. Be3
{[%clk 0:01:41.6]} 21... Qe7 {[%clk 0:01:52.1]} 22. Qf2 {[%clk 0:01:37]} 22...
Qf7 {[%clk 0:01:38.8]} 23. Bc5 {[%clk 0:01:33.9]} 23... Ne7 {[%clk 0:01:38.8]}
24. Bxb4 {[%clk 0:01:29.2]} 24... g5 {[%clk 0:01:04.5]} 25. Nd4 {[%clk 0:01:21]}
25... Ng6 {[%clk 0:00:47.1]} 26. Nxe6 {[%clk 0:01:18.4]} 26... Rxe6 {[%clk
0:00:46.7]} 27. c5 {[%clk 0:01:17.7]} 27... Rxe1+ {[%clk 0:00:45.6]} 28. Rxe1
{[%clk 0:01:06.4]} 28... Qxa2 {[%clk 0:00:44.9]} 29. c6 {[%clk 0:01:06.7]} 29...
Rc8 {[%clk 0:00:39.3]} 30. Qb6 {[%clk 0:00:50.9]} 30... Qc4 {[%clk 0:00:34.9]}
31. Rd1 {[%clk 0:00:29.2]} 31... Qxc6 {[%clk 0:00:25.8]} 32. Rd8+ {[%clk
0:00:29]} 32... Nf8 {[%clk 0:00:24.4]} 33. Qxc6 {[%clk 0:00:21.9]} 33... Rxc6
{[%clk 0:00:23.6]} 34. c3 {[%clk 0:00:21.1]} 34... Kf7 {[%clk 0:00:21.4]} 35.
Kg1 {[%clk 0:00:21]} 35... g4 {[%clk 0:00:19.7]} 36. Kf2 {[%clk 0:00:20.5]}
36... Bh6 {[%clk 0:00:19.7]} 37. Ke2 {[%clk 0:00:20.1]} 37... Ne6 {[%clk
0:00:19.4]} 38. Rd7+ {[%clk 0:00:19.7]} 38... Kg6 {[%clk 0:00:19.9]} 39. Kd3
{[%clk 0:00:19.9]} 39... Nf4+ {[%clk 0:00:17.9]} 40. Kd4 {[%clk 0:00:20]} 40...
Nxg2 {[%clk 0:00:16.9]} 41. Kd5 {[%clk 0:00:20.5]} 41... Rc8 {[%clk 0:00:16.8]}
42. Ra7 {[%clk 0:00:19.7]} 42... Ne3+ {[%clk 0:00:14.5]} 43. Ke6 {[%clk
0:00:17.5]} 43... Re8+ {[%clk 0:00:14.6]} 44. Kd7 {[%clk 0:00:17.6]} 44... Re4
{[%clk 0:00:13.8]} 45. Rxa6 {[%clk 0:00:17.6]} 45... f4 {[%clk 0:00:14.3]} 46.
Bd6 {[%clk 0:00:16.3]} 46... f3 {[%clk 0:00:14.2]} 47. Bg3 {[%clk 0:00:16.2]}
47... Bf4 {[%clk 0:00:12.4]} 48. Bf2 {[%clk 0:00:16.3]} 48... Nd1 {[%clk
0:00:12.1]} 49. Bc5 {[%clk 0:00:15.1]} 49... Be3 {[%clk 0:00:10.7]} 50. Bxe3
{[%clk 0:00:13.9]} 50... Rxe3 {[%clk 0:00:10.6]} 51. Rd6 {[%clk 0:00:14.7]}
51... Nxb2 {[%clk 0:00:10.1]} 52. Rb6 {[%clk 0:00:14.5]} 52... Nxa4 {[%clk
0:00:10]} 53. Rb4 {[%clk 0:00:13.1]} 53... Nxc3 {[%clk 0:00:10.1]} 54. Rxg4+
{[%clk 0:00:12.9]} 54... Kf5 {[%clk 0:00:10.9]} 55. Rg3 {[%clk 0:00:13.3]} 55...
Kf4 {[%clk 0:00:11]} 56. Rg7 {[%clk 0:00:12.8]} 56... f2 {[%clk 0:00:10.6]} 57.
Rxh7 {[%clk 0:00:13.5]} 57... f1=Q {[%clk 0:00:10.3]} 0-1

[Event "Early-Titled-Tuesday-Blitz-April-16-2024"]
[Site "Chess.com"]
[Date "2024.04.16"]
[Round "5"]
[White "Szparu"]
[Black "MokshAD1603"]
[Result "1-0"]
[WhiteElo "2832"]
[BlackElo "2612"]
[TimeControl "180+1"]
[EndTime "8:56:50 PDT"]
[Termination "Szparu won by resignation"]

1. e4 {[%clk 0:02:45.3]} 1... c5 {[%clk 0:02:56]} 2. Nf3 {[%clk 0:02:41]} 2...
d6 {[%clk 0:02:55.6]} 3. d4 {[%clk 0:02:38]} 3... cxd4 {[%clk 0:02:56.5]} 4.
Qxd4 {[%clk 0:02:37.5]} 4... Nf6 {[%clk 0:02:56.3]} 5. Nc3 {[%clk 0:02:36.4]}
5... Nc6 {[%clk 0:02:54.4]} 6. Qd3 {[%clk 0:02:36.2]} 6... g6 {[%clk 0:02:53.7]}
7. Nd5 {[%clk 0:02:34.8]} 7... Bg7 {[%clk 0:02:51.6]} 8. c3 {[%clk 0:02:34.9]}
8... O-O {[%clk 0:02:48.5]} 9. Bg5 {[%clk 0:02:34.5]} 9... Nd7 {[%clk
0:02:21.2]} 10. Qe3 {[%clk 0:02:34.4]} 10... Re8 {[%clk 0:02:17.2]} 11. Be2
{[%clk 0:02:32.2]} 11... Nde5 {[%clk 0:02:15]} 12. O-O {[%clk 0:02:31.6]} 12...
Be6 {[%clk 0:02:13.1]} 13. Rfd1 {[%clk 0:02:25.6]} 13... Bxd5 {[%clk 0:02:09.8]}
14. exd5 {[%clk 0:02:24.3]} 14... Nxf3+ {[%clk 0:02:10.1]} 15. Bxf3 {[%clk
0:02:24.2]} 15... Ne5 {[%clk 0:02:11]} 16. Be2 {[%clk 0:02:22.2]} 16... Rc8
{[%clk 0:02:06.7]} 17. Rd4 {[%clk 0:02:21.8]} 17... Qb6 {[%clk 0:02:03.6]} 18.
Rb4 {[%clk 0:02:19.5]} 18... Qxe3 {[%clk 0:02:02.9]} 19. Bxe3 {[%clk 0:02:20.4]}
19... b6 {[%clk 0:02:00.1]} 20. a4 {[%clk 0:02:20]} 20... Rb8 {[%clk 0:01:32.6]}
21. Bb5 {[%clk 0:01:52.9]} 21... Red8 {[%clk 0:01:30.2]} 22. a5 {[%clk
0:01:52.3]} 22... e6 {[%clk 0:01:24.9]} 23. axb6 {[%clk 0:01:48.6]} 23... axb6
{[%clk 0:01:25.8]} 24. dxe6 {[%clk 0:01:34.1]} 24... fxe6 {[%clk 0:01:26.7]} 25.
h3 {[%clk 0:01:24]} 25... d5 {[%clk 0:01:22]} 26. Be2 {[%clk 0:01:21.5]} 26...
Nd7 {[%clk 0:01:20.7]} 27. Bg4 {[%clk 0:01:19.8]} 27... Re8 {[%clk 0:01:10.2]}
28. Ra7 {[%clk 0:01:17.8]} 28... Nc5 {[%clk 0:01:10.8]} 29. Bxc5 {[%clk
0:01:12]} 29... bxc5 {[%clk 0:01:11.7]} 30. Rxb8 {[%clk 0:01:12.9]} 30... Rxb8
{[%clk 0:01:12.6]} 31. Bxe6+ {[%clk 0:01:13.4]} 31... Kh8 {[%clk 0:01:07.9]} 32.
Bxd5 {[%clk 0:01:12.6]} 32... Be5 {[%clk 0:01:07.9]} 33. Ra8 {[%clk 0:01:07.4]}
33... Rxa8 {[%clk 0:01:06.9]} 34. Bxa8 {[%clk 0:01:08.3]} 34... Kg7 {[%clk
0:01:07.6]} 35. Kf1 {[%clk 0:01:01.8]} 35... Kf6 {[%clk 0:01:06.9]} 36. Ke2
{[%clk 0:01:01.8]} 36... g5 {[%clk 0:01:03.2]} 37. Kd3 {[%clk 0:00:59.7]} 37...
Ke6 {[%clk 0:01:03.2]} 38. Kc4 {[%clk 0:00:59.3]} 38... Kd6 {[%clk 0:01:03.8]}
39. Bf3 {[%clk 0:00:47.1]} 39... h6 {[%clk 0:01:02.8]} 40. Bg4 {[%clk
0:00:44.5]} 40... Bf4 {[%clk 0:01:02.4]} 41. b4 {[%clk 0:00:41.5]} 41... cxb4
{[%clk 0:01:03.3]} 42. cxb4 {[%clk 0:00:42.3]} 42... Bd2 {[%clk 0:01:02.4]} 43.
b5 {[%clk 0:00:36.3]} 43... Be1 {[%clk 0:01:01.8]} 44. f3 {[%clk 0:00:27.2]}
44... Bf2 {[%clk 0:01:00.5]} 45. Bf5 {[%clk 0:00:22.5]} 45... Ke5 {[%clk
0:00:58.3]} 46. Be4 {[%clk 0:00:22.4]} 46... Kd6 {[%clk 0:00:59.2]} 47. Ba8
{[%clk 0:00:20.4]} 47... Ke5 {[%clk 0:00:59]} 48. Kd3 {[%clk 0:00:20.9]} 48...
Kd6 {[%clk 0:00:59.2]} 49. Ke4 {[%clk 0:00:21.1]} 49... Ke6 {[%clk 0:00:59.6]}
50. Bd5+ {[%clk 0:00:20.9]} 50... Kd6 {[%clk 0:00:59.5]} 51. Bc4 {[%clk
0:00:19.3]} 51... Ke7 {[%clk 0:00:59.8]} 52. Kf5 {[%clk 0:00:19.6]} 52... Kd6
{[%clk 0:00:48.4]} 53. Kg6 {[%clk 0:00:18.7]} 53... Ke5 {[%clk 0:00:49]} 54.
Kxh6 {[%clk 0:00:18.4]} 54... Kf4 {[%clk 0:00:49.7]} 55. Kh5 {[%clk 0:00:16.3]}
55... Be3 {[%clk 0:00:50.2]} 56. h4 {[%clk 0:00:15.3]} 56... gxh4 {[%clk
0:00:50.4]} 57. Kxh4 {[%clk 0:00:16.2]} 57... Bf2+ {[%clk 0:00:50.4]} 58. Kh3
{[%clk 0:00:15.8]} 58... Bb6 {[%clk 0:00:49.5]} 59. Bd5 {[%clk 0:00:15.7]} 59...
Ke5 {[%clk 0:00:49.6]} 60. Bc6 {[%clk 0:00:16.6]} 60... Kf4 {[%clk 0:00:48.7]}
61. g4 {[%clk 0:00:17.5]} 61... Bc7 {[%clk 0:00:47.6]} 62. Kh4 {[%clk 0:00:17]}
62... Bd8+ {[%clk 0:00:48.2]} 63. Kh5 {[%clk 0:00:17.6]} 63... Ke5 {[%clk
0:00:38.5]} 64. g5 {[%clk 0:00:15.9]} 64... Kf5 {[%clk 0:00:39.4]} 65. g6 {[%clk
0:00:15.9]} 65... Kf6 {[%clk 0:00:40.3]} 66. Kh6 {[%clk 0:00:16.3]} 1-0